bitfinex/quotes_SOLUSD_20250107
["timestamp","ask_amount","ask_price","bid_price","bid_amount"]
[1736239929557,8.99963535,216.68,216.65,1.98988214]
[1736239930569,8.99963535,216.68,216.63,1.627]
[1736239930774,13.4751,216.73,216.63,46.627]
[1736239930985,8.99963535,216.65,216.63,45.0]
[1736239931457,8.99963535,216.66,216.63,45.0]
[1736239934739,8.99963535,216.65,216.61,6.1015]
[1736239935454,8.99963535,216.65,216.62,1.99015657]
[1736239935653,8.99963535,216.66,216.62,1.99015657]
[1736239936154,8.99963535,216.66,216.63,1.99015657]
[1736239936967,8.99963535,216.66,216.61,6.1015]
[1736239937660,8.99963535,216.66,216.62,1.9901356]
[1736239938447,8.99963535,216.66,216.63,1.9901356]
[1736239938957,8.99963535,216.66,216.61,60.10113535]
[1736239939558,8.99963535,216.66,216.62,1.98984334]
[1736239940142,8.99963535,216.66,216.63,1.98984334]
[1736239940844,8.99963535,216.66,216.61,51.1015]
[1736239941167,8.99963535,216.65,216.61,51.1015]
[1736239941462,11.5367,216.7,216.61,45.0]
[1736239941653,8.99963535,216.65,216.62,1.99049967]
[1736239942159,8.99963535,216.66,216.61,45.0]
[1736239942363,8.99963535,216.65,216.61,45.0]
[1736239942870,8.99963535,216.66,216.61,45.0]
[1736239943171,8.99963535,216.66,216.62,1.99029332]
[1736239943367,11.5367,216.7,216.62,1.99029332]
[1736239943549,8.99963535,216.67,216.62,10.98992867]
[1736239943750,8.99963535,216.67,216.63,1.99029332]
[1736239944349,8.99963535,216.66,216.63,1.99029332]
[1736239944553,8.99963535,216.66,216.64,1.99029332]
[1736239944856,11.5356,216.72,216.64,1.99029332]
[1736239944857,8.99963535,216.67,216.64,1.99029332]
[1736239945075,8.99963535,216.67,216.61,8.99963535]
[1736239945873,8.99963535,216.67,216.62,1.98964725]
[1736239946457,8.99963535,216.67,216.63,1.98964725]
[1736239947050,8.99963535,216.67,216.62,45.0]
[1736239948468,8.99963535,216.67,216.63,1.98955577]
[1736239949274,11.5356,216.72,216.62,45.0]
[1736239949460,8.99963535,216.67,216.62,45.0]
[1736239950675,8.99963535,216.67,216.63,1.98943564]
[1736239951275,8.99963535,216.67,216.62,45.0]
[1736239952170,11.5356,216.72,216.6,7.21710365]
[1736239952171,8.99963535,216.66,216.6,7.21710365]
[1736239952380,8.99963535,216.65,216.63,1.98951561]
[1736239952877,8.99963535,216.65,216.6,7.21710365]
[1736239953177,8.99963535,216.65,216.59,16.216739]
[1736239953383,8.99963535,216.65,216.61,1.99001879]
[1736239954183,8.99963535,216.65,216.59,8.99963535]
[1736239954579,8.99963535,216.64,216.6,1.98992158]
[1736239955181,8.99963535,216.64,216.6,46.98992158]
[1736239955381,8.99963535,216.64,216.61,1.98992158]
[1736239956063,8.99963535,216.64,216.62,1.98992158]
[1736239956263,8.99963535,216.65,216.62,1.98992158]
[1736239956470,8.99963535,216.63,216.58,8.74350365]
[1736239956792,8.99963535,216.62,216.58,8.74350365]
[1736239957084,8.99963535,216.62,216.59,1.99045492]
[1736239957569,8.99963535,216.63,216.59,1.99045492]
[1736239957755,8.99963535,216.63,216.6,1.99045492]
[1736239958371,8.99963535,216.63,216.58,1.5264]
[1736239958774,8.99963535,216.63,216.6,45.0]
[1736239958975,8.99963535,216.64,216.6,45.0]
[1736239959571,1.94,216.67,216.6,45.0]
[1736239959882,8.99963535,216.65,216.6,45.0]
[1736239960593,8.99963535,216.65,216.61,1.98978383]
[1736239961385,8.99963535,216.64,216.62,1.98978383]
[1736239961768,8.99963535,216.64,216.6,45.0]
[1736239962485,8.99963535,216.64,216.61,1.99027733]
[1736239963086,8.99963535,216.64,216.62,1.99027733]
[1736239963265,8.99963535,216.65,216.62,1.99027733]
[1736239963787,8.99963535,216.65,216.6,45.0]
[1736239963968,1.94,216.67,216.6,45.0]
[1736239964166,1.94,216.71,216.63,8.99963535]
[1736239964573,8.99963535,216.68,216.64,1.9908945]
[1736239964775,8.99963535,216.69,216.64,1.9908945]
[1736239965067,8.99963535,216.7,216.64,10.99052985]
[1736239965269,8.99963535,216.71,216.65,10.99052985]
[1736239965589,8.99963535,216.7,216.65,1.9908945]
[1736239965789,8.99963535,216.71,216.65,1.9908945]
[1736239965991,8.99963535,216.71,216.66,1.9908945]
[1736239966472,8.99963535,216.71,216.64,8.99963535]
[1736239967207,6.85324034,216.79,216.64,8.99963535]
[1736239967208,11.5332,216.77,216.66,8.99963535]
[1736239967485,8.99963535,216.75,216.68,8.99963535]
[1736239968074,8.99963535,216.74,216.68,8.99963535]
[1736239968273,8.99963535,216.74,216.69,1.99102226]
[1736239968890,8.99963535,216.74,216.7,1.99102226]
[1736239969560,8.99963535,216.74,216.71,1.99102226]
[1736239970187,8.99963535,216.73,216.67,8.99963535]
[1736239970589,8.99963535,216.73,216.68,1.9892457]
[1736239970773,8.99963535,216.73,216.68,46.9892457]
[1736239971191,8.99963535,216.72,216.68,46.9892457]
[1736239971390,8.99963535,216.71,216.69,1.9892457]
[1736239972461,14.51099562,216.95,216.75,5.0]
[1736239972669,8.99963535,216.93,216.76,19.53159782]
[1736239972870,8.99963535,216.93,216.84,8.99963535]
[1736239973104,14.51099562,216.95,216.84,8.99963535]
[1736239973402,8.99963535,216.93,216.84,8.99963535]
[1736239973767,11.5234,216.95,216.84,8.99963535]
[1736239974307,11.5234,216.95,216.85,10.97670688]
[1736239974308,10.93963535,216.92,216.85,10.97670688]
[1736239974604,1.94,216.92,216.86,8.99963535]
[1736239975902,8.99963535,216.93,216.86,8.99963535]
[1736239976117,11.5234,216.95,216.84,1.5115]
[1736239976118,8.99963535,216.91,216.84,10.51113535]
[1736239976609,15.54595301,216.9,216.84,1.5115]
[1736239976901,8.99963535,216.89,216.84,1.5115]
[1736239977462,15.54595301,216.9,216.84,1.5115]
[1736239977900,15.54595301,216.9,216.84,37.5115]
[1736239978284,8.99963535,216.85,216.77,1.6057]
[1736239978605,8.99963535,216.82,216.77,1.6057]
[1736239980113,8.99963535,216.83,216.77,1.6057]
[1736239980296,10.93963535,216.83,216.77,1.6057]
[1736239982493,1.94,216.83,216.77,10.60533535]
[1736239983202,8.99963535,216.82,216.77,1.6057]
[1736239983801,8.99963535,216.81,216.77,1.6057]
[1736239984384,8.99963535,216.82,216.77,1.6057]
[1736239988490,8.99963535,216.79,216.74,6.0492]
[1736239989317,8.99963535,216.78,216.74,6.0492]
[1736239990691,8.99963535,216.77,216.72,1.6385]
[1736239992083,8.99963535,216.79,216.73,8.99963535]
[1736239993809,11.05963535,216.8,216.73,8.99963535]
[1736239994710,11.05963535,216.8,216.72,10.63813535]
[1736239995203,8.99963535,216.79,216.72,10.63813535]
[1736239995525,8.99963535,216.79,216.72,1.6385]
[1736239996325,8.99963535,216.78,216.72,1.6385]
[1736239996496,8.99963535,216.75,216.72,1.6385]
[1736239996827,8.99963535,216.76,216.72,1.6385]
[1736240003499,8.99963535,216.77,216.72,1.6385]
[1736240009213,11.5299,216.83,216.72,1.6385]
[1736240009417,8.99963535,216.79,216.72,10.63813535]
[1736240009606,8.99963535,216.79,216.73,8.99963535]
[1736240010414,11.05963535,216.8,216.73,8.99963535]
[1736240010614,11.05963535,216.8,216.74,8.99963535]
[1736240011918,2.06,216.8,216.74,8.99963535]
[1736240012321,2.06,216.8,216.75,8.99963535]
[1736240012819,2.06,216.8,216.74,8.99963535]
[1736240017036,2.06,216.8,216.72,11.33010885]
[1736240017548,2.06,216.8,216.73,1.98049901]
[1736240018852,2.06,216.8,216.72,15.13611503]
[1736240019852,2.06,216.8,216.73,1.98236316]
[1736240020431,2.06,216.8,216.74,1.98236316]
[1736240021269,2.06,216.8,216.72,2.3304735]
[1736240021842,2.06,216.8,216.73,1.98548046]
[1736240022521,2.06,216.8,216.74,5.80036792]
[1736240023041,2.06,216.8,216.75,1.98548046]
[1736240023337,20.0,216.83,216.75,1.98548046]
[1736240023531,11.01963535,216.81,216.75,1.98548046]
[1736240023734,11.01963535,216.81,216.76,1.98548046]
[1736240024053,11.01963535,216.81,216.72,2.3304735]
[1736240024054,11.5281,216.86,216.73,6.3909]
[1736240024241,2.02,216.85,216.76,8.99963535]
[1736240024446,8.99963535,216.83,216.77,8.99963535]
[1736240024618,2.02,216.85,216.77,8.99963535]
[1736240024937,8.99963535,216.84,216.78,8.99963535]
[1736240027040,8.99963535,216.83,216.77,28.99963535]
[1736240027551,8.99963535,216.83,216.78,1.98722682]
[1736240028241,8.99963535,216.83,216.77,20.0]
[1736240028753,13.5481,216.86,216.77,20.0]
[1736240028942,8.99963535,216.83,216.77,20.0]
[1736240029556,8.99963535,216.83,216.78,1.98754749]
[1736240030433,8.99963535,216.83,216.77,20.0]
[1736240031656,8.99963535,216.83,216.78,1.98759567]
[1736240032356,8.99963535,216.83,216.77,20.0]
[1736240033663,8.99963535,216.83,216.78,1.98768294]
[1736240034262,8.99963535,216.83,216.77,20.0]
[1736240035564,8.99963535,216.84,216.78,1.98757998]
[1736240036063,8.99963535,216.84,216.77,28.99963535]
[1736240037066,2.02,216.85,216.77,28.99963535]
[1736240037369,11.01963535,216.85,216.78,1.98748408]
[1736240037964,2.02,216.85,216.78,1.98748408]
[1736240038263,11.01963535,216.85,216.77,28.99963535]
[1736240039064,11.01963535,216.85,216.78,1.98733184]
[1736240039665,11.01963535,216.85,216.77,28.99963535]
[1736240040639,8.99963535,216.84,216.77,28.99963535]
[1736240040840,8.99963535,216.84,216.77,20.0]
[1736240041366,8.99963535,216.84,216.78,1.98651866]
[1736240042065,8.99963535,216.84,216.79,1.98651866]
[1736240042672,8.99963535,216.84,216.8,1.98651866]
[1736240043386,8.99963535,216.84,216.77,20.0]
[1736240043684,2.02,216.85,216.77,20.69180103]
[1736240043968,1.98,216.86,216.78,10.98528653]
[1736240044643,10.97963535,216.86,216.79,1.98565118]
[1736240044843,10.97963535,216.86,216.79,10.98528653]
[1736240045264,10.97963535,216.86,216.8,1.98565118]
[1736240045775,10.97963535,216.86,216.81,1.98565118]
[1736240046569,10.97963535,216.86,216.79,8.99963535]
[1736240047487,10.97963535,216.86,216.8,1.98413393]
[1736240047773,8.99963535,216.82,216.8,1.98413393]
[1736240048242,8.99963535,216.83,216.77,20.0]
[1736240048945,8.99963535,216.83,216.78,1.98408229]
[1736240049674,8.99963535,216.83,216.79,1.98408229]
[1736240050266,8.99963535,216.83,216.8,1.98408229]
[1736240050766,8.99963535,216.83,216.77,28.99963535]
[1736240051653,8.99963535,216.83,216.78,1.98433481]
[1736240051972,8.99963535,216.83,216.77,28.99963535]
[1736240051973,8.99963535,216.83,216.79,1.98433481]
[1736240052667,8.99963535,216.83,216.8,1.98433481]
[1736240053066,1.98,216.85,216.8,1.98433481]
[1736240053377,8.99963535,216.83,216.77,20.0]
[1736240053761,8.99963535,216.83,216.75,7.152461]
[1736240053762,8.99963535,216.82,216.75,7.152461]
[1736240053977,1.98,216.85,216.75,7.152461]
[1736240053978,8.99963535,216.81,216.75,16.15209635]
[1736240054177,8.99963535,216.81,216.76,1.98474625]
[1736240054866,8.99963535,216.81,216.77,1.98474625]
[1736240055477,8.99963535,216.81,216.78,1.98474625]
[1736240055669,8.99963535,216.8,216.78,1.98474625]
[1736240056076,8.99963535,216.81,216.76,20.0]
[1736240056384,8.99963535,216.79,216.73,13.543361]
[1736240056558,8.99963535,216.79,216.77,1.98536841]
[1736240056976,8.99963535,216.78,216.77,1.98536841]
[1736240057381,8.99963535,216.78,216.73,6.3909]
[1736240057569,8.99963535,216.77,216.73,6.3909]
[1736240057770,8.99963535,216.77,216.74,1.98544414]
[1736240058161,8.99963535,216.76,216.74,1.98544414]
[1736240058383,8.99963535,216.75,216.74,1.98544414]
[1736240058564,8.99963535,216.75,216.72,7.152461]
[1736240059183,8.99963535,216.75,216.73,1.98545135]
[1736240059563,8.99963535,216.75,216.74,1.98545135]
[1736240061479,8.99963535,216.76,216.74,1.98545135]
[1736240061872,8.99963535,216.76,216.75,1.98545135]
[1736240062506,8.99963535,216.77,216.75,1.98545135]
[1736240062663,8.99963535,216.78,216.75,1.98545135]
[1736240063290,8.99963535,216.78,216.72,8.99963535]
[1736240063892,8.99963535,216.78,216.73,1.98514287]
[1736240064098,8.99963535,216.79,216.73,10.98477822]
[1736240064263,13.5109,216.81,216.74,10.98477822]
[1736240064463,8.99963535,216.8,216.74,10.98477822]
[1736240064976,8.99963535,216.8,216.75,1.98514287]
[1736240065563,8.99963535,216.8,216.74,8.99963535]
[1736240066791,8.99963535,216.8,216.75,1.98541726]
[1736240067283,1.98,216.81,216.74,8.99963535]
[1736240067491,8.99963535,216.8,216.74,8.99963535]
[1736240068070,8.99963535,216.79,216.73,8.99963535]
[1736240068460,8.99963535,216.79,216.74,1.98563736]
[1736240068990,8.99963535,216.79,216.75,1.98563736]
[1736240069993,8.99963535,216.79,216.76,1.98563736]
[1736240070410,8.99963535,216.79,216.73,8.99963535]
[1736240070807,8.99963535,216.79,216.74,1.98539309]
[1736240071570,8.99963535,216.79,216.75,1.98539309]
[1736240072293,8.99963535,216.79,216.76,1.98539309]
[1736240072868,8.99963535,216.79,216.73,8.99963535]
[1736240073578,8.99963535,216.79,216.74,1.98402002]
[1736240073806,8.99963535,216.78,216.74,1.98402002]
[1736240074081,8.99963535,216.77,216.74,1.98402002]
[1736240074284,8.99963535,216.77,216.71,16.15209635]
[1736240074285,8.99963535,216.77,216.75,1.98402002]
[1736240074992,8.99963535,216.77,216.71,8.99963535]
[1736240075193,8.99963535,216.78,216.72,8.99963535]
[1736240075495,8.99963535,216.78,216.73,1.98423976]
[1736240076195,8.99963535,216.78,216.74,1.98423976]
[1736240076996,8.99963535,216.78,216.72,8.99963535]
[1736240077613,8.99963535,216.78,216.73,1.98361419]
[1736240077971,8.99963535,216.77,216.73,1.98361419]
[1736240078300,8.99963535,216.76,216.74,1.98361419]
[1736240078470,8.99963535,216.76,216.7,8.99963535]
[1736240079073,8.99963535,216.76,216.71,1.98353298]
[1736240079582,8.99963535,216.76,216.72,1.98353298]
[1736240080295,8.99963535,216.76,216.7,8.99963535]
[1736240080898,8.99963535,216.76,216.71,1.98290393]
[1736240081501,8.99963535,216.76,216.7,8.99963535]
[1736240081502,8.99963535,216.76,216.72,1.98290393]
[1736240081873,8.99963535,216.76,216.7,8.99963535]
[1736240082602,8.99963535,216.76,216.71,1.98249754]
[1736240083099,8.99963535,216.76,216.72,1.98249754]
[1736240083583,8.99963535,216.76,216.7,28.99963535]
[1736240084280,8.99963535,216.76,216.71,1.98231188]
[1736240084907,8.99963535,216.75,216.71,1.98231188]
[1736240085199,8.99963535,216.75,216.7,20.0]
[1736240086496,8.99963535,216.75,216.71,1.98196458]
[1736240087500,8.99963535,216.75,216.69,8.99963535]
[1736240087799,8.99963535,216.74,216.69,8.99963535]
[1736240088000,8.99963535,216.74,216.68,8.99963535]
[1736240088197,8.99963535,216.74,216.7,1.98256022]
[1736240088702,8.99963535,216.72,216.71,1.98256022]
[1736240089298,8.99963535,216.73,216.71,1.98256022]
[1736240089789,8.99963535,216.72,216.71,1.98256022]
[1736240089991,8.99963535,216.72,216.67,1.5384]
[1736240090903,8.99963535,216.72,216.68,1.98277657]
[1736240091578,8.99963535,216.72,216.69,1.98277657]
[1736240092305,8.99963535,216.72,216.7,1.98277657]
[1736240092898,8.99963535,216.72,216.71,1.98277657]
[1736240095009,8.99963535,216.72,216.68,1.98277657]
[1736240095306,8.99963535,216.73,216.68,1.98277657]
[1736240095490,8.99963535,216.73,216.69,1.98277657]
[1736240096300,8.99963535,216.73,216.67,30.53803535]
[1736240096810,8.99963535,216.73,216.68,1.98459204]
[1736240097110,8.99963535,216.73,216.69,1.98459204]
[1736240097283,8.99963535,216.74,216.69,1.98459204]
[1736240097608,8.99963535,216.75,216.69,10.98422739]
[1736240097805,11.533,216.77,216.71,8.99963535]
[1736240098112,8.99963535,216.76,216.71,8.99963535]
[1736240098316,8.99963535,216.76,216.7,10.98422739]
[1736240098514,8.99963535,216.76,216.72,1.98459204]
[1736240099298,8.99963535,216.76,216.7,8.99963535]
[1736240100015,8.99963535,216.76,216.71,1.98487852]
[1736240100611,8.99963535,216.76,216.7,8.99963535]
[1736240102186,8.99963535,216.75,216.71,1.98516326]
[1736240102382,1.96,216.78,216.71,10.98479861]
[1736240102589,8.99963535,216.77,216.72,1.98516326]
[1736240103511,8.99963535,216.77,216.73,1.98516326]
[1736240104209,8.99963535,216.77,216.71,8.99963535]
[1736240104811,8.99963535,216.77,216.72,1.98496737]
[1736240105413,8.99963535,216.77,216.73,1.98496737]
[1736240106000,8.99963535,216.77,216.71,8.99963535]
[1736240106618,8.99963535,216.77,216.72,1.98488448]
[1736240107013,8.99963535,216.76,216.72,1.98488448]
[1736240107215,8.99963535,216.76,216.73,1.98488448]
[1736240107991,8.99963535,216.75,216.69,15.55953535]
[1736240108387,8.99963535,216.71,216.7,1.98483567]
[1736240109117,8.99963535,216.72,216.7,1.98483567]
[1736240109318,8.99963535,216.71,216.7,1.98483567]
[1736240109692,8.99963535,216.72,216.67,8.99963535]
[1736240110398,8.99963535,216.72,216.68,1.98505021]
[1736240111221,8.99963535,216.72,216.69,1.98505021]
[1736240111927,8.99963535,216.71,216.66,8.99963535]
[1736240112419,8.99963535,216.72,216.67,8.99963535]
[1736240112723,8.99963535,216.72,216.67,10.9843604]
[1736240113122,8.99963535,216.72,216.68,1.98472505]
[1736240113420,8.99963535,216.72,216.67,8.99963535]
[1736240115217,8.99963535,216.72,216.68,1.98476925]
[1736240115630,8.99963535,216.72,216.69,1.98476925]
[1736240116533,8.99963535,216.72,216.67,8.99963535]
[1736240116942,8.99963535,216.72,216.68,1.98456622]
[1736240117513,8.99963535,216.72,216.69,1.98456622]
[1736240118338,8.99963535,216.72,216.67,8.99963535]
[1736240118936,8.99963535,216.72,216.68,1.98509582]
[1736240119339,8.99963535,216.72,216.69,1.98509582]
[1736240119833,8.99963535,216.72,216.67,8.99963535]
[1736240120131,8.99963535,216.72,216.67,20.0]
[1736240120433,8.99963535,216.72,216.68,1.98475512]
[1736240120639,8.99963535,216.71,216.68,1.98475512]
[1736240121040,15.0584,216.78,216.69,1.98475512]
[1736240121637,8.99963535,216.72,216.69,1.98475512]
[1736240122008,8.99963535,216.71,216.67,20.0]
[1736240122841,8.99963535,216.71,216.68,1.9851775]
[1736240123239,8.99963535,216.71,216.69,1.9851775]
[1736240123942,8.99963535,216.71,216.67,20.0]
[1736240124839,8.99963535,216.71,216.68,1.9850872]
[1736240125339,8.99963535,216.71,216.69,1.9850872]
[1736240126039,8.99963535,216.71,216.67,20.0]
[1736240126741,8.99963535,216.71,216.68,1.9850709]
[1736240127418,8.99963535,216.7,216.68,1.9850709]
[1736240127619,8.99963535,216.7,216.69,1.9850709]
[1736240129646,8.99963535,216.71,216.69,1.9850709]
[1736240130247,8.99963535,216.71,216.67,20.0]
[1736240130849,8.99963535,216.71,216.68,1.98507322]
[1736240131442,8.99963535,216.71,216.69,1.98507322]
[1736240132146,8.99963535,216.71,216.67,20.0]
[1736240132849,8.99963535,216.71,216.68,1.98508278]
[1736240133247,8.99963535,216.71,216.69,1.98508278]
[1736240133863,8.99963535,216.71,216.67,20.0]
[1736240134455,8.99963535,216.71,216.68,1.98517693]
[1736240134952,8.99963535,216.71,216.69,1.98517693]
[1736240135650,8.99963535,216.71,216.67,20.0]
[1736240136250,8.99963535,216.71,216.68,1.98513227]
[1736240136852,8.99963535,216.71,216.69,1.98513227]
[1736240137352,8.99963535,216.71,216.67,20.0]
[1736240137746,8.99963535,216.68,216.64,13.326361]
[1736240137953,8.99963535,216.68,216.64,7.152461]
[1736240138253,8.99963535,216.67,216.65,1.9857656]
[1736240138958,8.99963535,216.68,216.65,1.9857656]
[1736240139157,8.99963535,216.68,216.66,1.9857656]
[1736240139648,8.99963535,216.69,216.66,1.9857656]
[1736240139849,8.99963535,216.69,216.67,1.9857656]
[1736240140152,8.99963535,216.69,216.63,8.99963535]
[1736240140353,8.99963535,216.68,216.63,8.99963535]
[1736240140854,8.99963535,216.68,216.64,1.98541027]
[1736240141251,8.99963535,216.68,216.65,20.0]
[1736240141441,8.99963535,216.68,216.65,21.98541027]
[1736240142152,8.99963535,216.68,216.63,8.99963535]
[1736240142153,8.99963535,216.68,216.66,1.98541027]
[1736240142747,8.99963535,216.68,216.67,1.98541027]
[1736240144754,11.5344,216.75,216.67,1.98541027]
[1736240144954,8.99963535,216.68,216.67,1.98541027]
[1736240147759,8.99963535,216.69,216.67,1.98541027]
[1736240148155,8.99963535,216.69,216.63,8.99963535]
[1736240148961,8.99963535,216.69,216.64,1.98547975]
[1736240149645,8.99963535,216.69,216.65,1.98547975]
[1736240150360,8.99963535,216.69,216.66,1.98547975]
[1736240151158,8.99963535,216.69,216.67,1.98547975]
[1736240151661,8.99963535,216.69,216.68,1.98547975]
[1736240153749,1.94,216.72,216.68,1.98547975]
[1736240153940,8.99963535,216.7,216.68,1.98547975]
[1736240154467,8.99963535,216.69,216.68,1.98547975]
[1736240167066,8.99963535,216.69,216.64,7.152461]
[1736240167251,8.99963535,216.65,216.64,7.152461]
[1736240167665,8.99963535,216.65,216.64,9.14041628]
[1736240167871,8.99963535,216.65,216.64,1.98795528]
[1736240172271,8.99963535,216.65,216.59,6.2284]
[1736240172961,8.99963535,216.65,216.6,1.98676219]
[1736240173571,8.99963535,216.65,216.61,1.98676219]
[1736240174381,8.99963535,216.65,216.62,1.98676219]
[1736240174778,8.99963535,216.64,216.62,1.98676219]
[1736240174979,8.99963535,216.65,216.62,1.98676219]
[1736240175283,8.99963535,216.65,216.63,1.98676219]
[1736240176069,8.99963535,216.65,216.59,15.22803535]
[1736240176654,8.99963535,216.65,216.6,1.98608799]
[1736240177184,8.99963535,216.65,216.61,1.98608799]
[1736240177684,8.99963535,216.65,216.59,15.22803535]
[1736240177885,8.99963535,216.64,216.59,15.22803535]
[1736240178484,8.99963535,216.64,216.6,1.98548213]
[1736240179092,8.99963535,216.64,216.61,1.98548213]
[1736240179269,1.5749,216.72,216.61,11.67754945]
[1736240179584,8.99963535,216.71,216.65,8.99963535]
[1736240180271,8.99963535,216.71,216.66,1.98548213]
[1736240180467,1.94,216.73,216.66,10.98511748]
[1736240180681,8.99963535,216.72,216.66,10.98511748]
[1736240181197,8.99963535,216.72,216.67,1.98548213]
[1736240182288,8.99963535,216.72,216.68,1.98548213]
[1736240182793,8.99963535,216.72,216.66,8.99963535]
[1736240183391,8.99963535,216.72,216.67,1.98384959]
[1736240184197,8.99963535,216.71,216.68,1.98384959]
[1736240184371,8.99963535,216.7,216.68,1.98384959]
[1736240184771,8.99963535,216.71,216.68,1.98384959]
[1736240184971,8.99963535,216.71,216.65,8.99963535]
[1736240185694,10.93963535,216.73,216.67,8.99963535]
[1736240186490,8.99963535,216.72,216.66,10.98305567]
[1736240186692,8.99963535,216.72,216.68,1.98342032]
[1736240187904,8.99963535,216.72,216.66,8.99963535]
[1736240188394,8.99963535,216.71,216.65,9.69181412]
[1736240188567,8.99963535,216.71,216.67,1.98278536]
[1736240188766,8.99963535,216.7,216.67,1.98278536]
[1736240188968,8.99963535,216.7,216.68,1.98278536]
[1736240189494,8.99963535,216.7,216.64,8.99963535]
[1736240190200,8.99963535,216.69,216.63,9.46118851]
[1736240190406,8.99963535,216.7,216.65,1.98289471]
[1736240191106,8.99963535,216.7,216.66,1.98289471]
[1736240191792,8.99963535,216.7,216.67,1.98289471]
[1736240192211,8.99963535,216.7,216.64,8.99963535]
[1736240192914,8.99963535,216.7,216.65,1.98141868]
[1736240193419,8.99963535,216.7,216.66,2.31456369]
[1736240193715,8.99963535,216.7,216.66,4.29598237]
[1736240194320,8.99963535,216.7,216.66,1.98141868]
[1736240194504,8.99963535,216.7,216.64,8.99963535]
[1736240195017,8.99963535,216.7,216.65,4.29893802]
[1736240195617,8.99963535,216.7,216.66,1.98431556]
[1736240195916,8.99963535,216.7,216.66,4.29893802]
[1736240196218,8.99963535,216.7,216.66,2.31462246]
[1736240196415,8.99963535,216.7,216.64,8.99963535]
[1736240196928,8.99963535,216.7,216.65,1.98444667]
[1736240197218,8.99963535,216.7,216.65,4.29925537]
[1736240197613,8.99963535,216.7,216.66,4.29925537]
[1736240198116,8.99963535,216.7,216.66,1.98444667]
[1736240198308,8.99963535,216.7,216.67,1.98444667]
[1736240198621,8.99963535,216.69,216.67,1.98444667]
[1736240199123,8.99963535,216.69,216.65,20.0]
[1736240199493,1.94,216.73,216.59,34.963734]
[1736240199494,8.99963535,216.66,216.61,43.152461]
[1736240199699,8.99963535,216.66,216.64,20.0]
[1736240200097,8.99963535,216.66,216.63,20.0]
[1736240200721,8.99963535,216.66,216.64,4.30109993]
[1736240201522,8.99963535,216.66,216.63,20.0]
[1736240202420,8.99963535,216.66,216.64,1.9853013]
[1736240202924,8.99963535,216.66,216.64,4.3010447]
[1736240203107,8.99963535,216.65,216.64,4.3010447]
[1736240203308,8.99963535,216.65,216.6,9.69190863]
[1736240203825,8.99963535,216.65,216.61,2.31573099]
[1736240204002,8.99963535,216.65,216.61,4.30095182]
[1736240204324,8.99963535,216.66,216.62,2.31573099]
[1736240204723,8.99963535,216.66,216.63,1.98522083]
[1736240205022,8.99963535,216.66,216.63,4.30095182]
[1736240205324,8.99963535,216.66,216.64,1.98522083]
[1736240205832,8.99963535,216.66,216.64,4.30095182]
[1736240205995,8.99963535,216.67,216.64,2.31573099]
[1736240206420,1.94,216.74,216.65,8.99963535]
[1736240207008,8.99963535,216.71,216.66,2.31477084]
[1736240207208,8.99963535,216.71,216.66,4.29956016]
[1736240207826,8.99963535,216.71,216.67,2.31477084]
[1736240208123,8.99963535,216.7,216.67,2.31477084]
[1736240208617,8.99963535,216.7,216.64,28.99963535]
[1736240209132,8.99963535,216.7,216.65,2.31456333]
[1736240209335,8.99963535,216.7,216.65,4.29908156]
[1736240209822,8.99963535,216.7,216.66,2.31456333]
[1736240210026,8.99963535,216.7,216.66,4.29908156]
[1736240210528,8.99963535,216.7,216.66,1.98451823]
[1736240210835,8.99963535,216.7,216.67,1.98451823]
[1736240211206,8.99963535,216.69,216.67,1.98451823]
[1736240211630,8.99963535,216.69,216.63,28.99963535]
[1736240212227,8.99963535,216.69,216.64,1.98444364]
[1736240212738,8.99963535,216.68,216.65,21.98444364]
[1736240213536,8.99963535,216.68,216.65,20.0]
[1736240215038,8.99963535,216.68,216.63,20.0]
[1736240215735,8.99963535,216.68,216.64,1.98802725]
[1736240216032,13.475,216.74,216.64,10.9876626]
[1736240216240,8.99963535,216.7,216.65,1.98802725]
[1736240217037,8.99963535,216.71,216.66,1.98802725]
[1736240217634,8.99963535,216.71,216.67,1.98802725]
[1736240218538,8.99963535,216.71,216.64,8.99963535]
[1736240219041,8.99963535,216.71,216.65,1.98772464]
[1736240219641,8.99963535,216.71,216.66,1.98772464]
[1736240220136,8.99963535,216.71,216.67,1.98772464]
[1736240220743,8.99963535,216.71,216.64,8.99963535]
[1736240221539,8.99963535,216.71,216.65,1.98840983]
[1736240222147,8.99963535,216.71,216.66,1.98840983]
[1736240222725,8.99963535,216.71,216.67,1.98840983]
[1736240223214,8.99963535,216.71,216.68,1.98840983]
[1736240223963,8.99963535,216.71,216.69,1.98840983]
[1736240224644,8.99963535,216.71,216.65,8.99963535]
[1736240225125,8.99963535,216.71,216.66,1.98978108]
[1736240225638,13.475,216.74,216.66,1.98978108]
[1736240225815,8.99963535,216.71,216.67,1.98978108]